[Event "Early-Titled-Tuesday-Blitz-February-20-2024"]
[Site "Chess.com"]
[Date "2024.02.20"]
[Round "1"]
[White "RobertoJBM"]
[Black "mbchess97"]
[Result "1-0"]
[WhiteElo "2832"]
[BlackElo "2465"]
[TimeControl "180+1"]
[EndTime "8:07:57 PST"]
[Termination "RobertoJBM won by resignation"]

1. d4 {[%clk 0:02:52.8]} 1... Nf6 {[%clk 0:02:59.1]} 2. Nf3 {[%clk 0:02:52]}
2... e6 {[%clk 0:02:58.8]} 3. e3 {[%clk 0:02:47.8]} 3... d5 {[%clk 0:02:55.9]}
4. Bd3 {[%clk 0:02:47.3]} 4... b6 {[%clk 0:02:53.6]} 5. Qe2 {[%clk 0:02:46.5]}
5... c5 {[%clk 0:02:45.4]} 6. c3 {[%clk 0:02:46.4]} 6... Bd6 {[%clk 0:02:38.9]}
7. Nbd2 {[%clk 0:02:45.3]} 7... Bb7 {[%clk 0:02:31.7]} 8. O-O {[%clk 0:02:38.6]}
8... Nbd7 {[%clk 0:02:19.2]} 9. e4 {[%clk 0:02:37.4]} 9... dxe4 {[%clk
0:02:14.3]} 10. Nxe4 {[%clk 0:02:37.3]} 10... Nxe4 {[%clk 0:02:14.2]} 11. Bxe4
{[%clk 0:02:38.2]} 11... Bxe4 {[%clk 0:02:13.8]} 12. Qxe4 {[%clk 0:02:39.1]}
12... O-O {[%clk 0:02:06.5]} 13. Bg5 {[%clk 0:02:38.2]} 13... Be7 {[%clk
0:02:04.2]} 14. Bxe7 {[%clk 0:02:35.8]} 14... Qxe7 {[%clk 0:02:03.5]} 15. Rfe1
{[%clk 0:02:35.3]} 15... Nf6 {[%clk 0:02:00.1]} 16. Qh4 {[%clk 0:02:32.8]} 16...
cxd4 {[%clk 0:01:58.5]} 17. Nxd4 {[%clk 0:02:31.5]} 17... Qc5 {[%clk 0:01:53.6]}
18. Rad1 {[%clk 0:02:25.5]} 18... Rfd8 {[%clk 0:01:52.1]} 19. h3 {[%clk
0:01:42.4]} 19... Rd5 {[%clk 0:01:47.5]} 20. Nb3 {[%clk 0:01:41.2]} 20... Qd6
{[%clk 0:01:43.9]} 21. Rxd5 {[%clk 0:01:40.5]} 21... Qxd5 {[%clk 0:01:44.1]} 22.
Qd4 {[%clk 0:01:35.5]} 22... Rd8 {[%clk 0:01:34.4]} 23. Qxd5 {[%clk 0:01:25.6]}
23... Rxd5 {[%clk 0:01:33]} 24. Nd4 {[%clk 0:01:23.5]} 24... Kf8 {[%clk
0:01:29.8]} 25. Kf1 {[%clk 0:01:18]} 25... Ke7 {[%clk 0:01:15]} 26. g4 {[%clk
0:00:53.7]} 26... Kd7 {[%clk 0:01:12.5]} 27. f4 {[%clk 0:00:52.3]} 27... h5
{[%clk 0:01:09.6]} 28. g5 {[%clk 0:00:50.8]} 28... Ne8 {[%clk 0:01:09.2]} 29.
Kf2 {[%clk 0:00:44.1]} 29... Nd6 {[%clk 0:01:09.1]} 30. Kf3 {[%clk 0:00:44.1]}
30... Nf5 {[%clk 0:01:08.8]} 31. Nxf5 {[%clk 0:00:43.9]} 31... Rxf5 {[%clk
0:01:07.4]} 32. Rd1+ {[%clk 0:00:40.5]} 32... Kc7 {[%clk 0:01:02.6]} 33. Ke4
{[%clk 0:00:38.7]} 33... Ra5 {[%clk 0:00:55.5]} 34. a3 {[%clk 0:00:33.7]} 34...
f6 {[%clk 0:00:50.9]} 35. gxf6 {[%clk 0:00:20.5]} 35... gxf6 {[%clk 0:00:51.8]}
36. Rg1 {[%clk 0:00:20.8]} 36... f5+ {[%clk 0:00:45.6]} 37. Ke3 {[%clk
0:00:19.4]} 37... e5 {[%clk 0:00:40.6]} 38. Rg5 {[%clk 0:00:18.4]} 38... exf4+
{[%clk 0:00:37.7]} 39. Kxf4 {[%clk 0:00:19.3]} 39... Rb5 {[%clk 0:00:37.7]} 40.
b4 {[%clk 0:00:17.2]} 40... Rd5 {[%clk 0:00:33.6]} 41. Rxf5 {[%clk 0:00:04.6]}
41... Rd3 {[%clk 0:00:33.7]} 42. Rxh5 {[%clk 0:00:04.7]} 42... Rxc3 {[%clk
0:00:33.7]} 43. h4 {[%clk 0:00:04.5]} 43... Rxa3 {[%clk 0:00:33.8]} 44. Re5
{[%clk 0:00:03.3]} 44... Rb3 {[%clk 0:00:32.6]} 45. b5 {[%clk 0:00:02.1]} 45...
Rb1 {[%clk 0:00:31.3]} 46. h5 {[%clk 0:00:01.8]} 46... Rh1 {[%clk 0:00:30.2]}
47. Kg5 {[%clk 0:00:01.2]} 47... Kd6 {[%clk 0:00:29.2]} 48. Rf5 {[%clk
0:00:01.7]} 48... a6 {[%clk 0:00:27]} 49. bxa6 {[%clk 0:00:01.6]} 49... Ra1
{[%clk 0:00:27]} 50. h6 {[%clk 0:00:01.8]} 50... Rxa6 {[%clk 0:00:27.1]} 51. h7
{[%clk 0:00:02.5]} 51... Ra8 {[%clk 0:00:27.1]} 52. Kg6 {[%clk 0:00:03]} 52...
Rh8 {[%clk 0:00:25.5]} 53. Kg7 {[%clk 0:00:03.5]} 53... Rxh7+ {[%clk 0:00:25.3]}
54. Kxh7 {[%clk 0:00:04.4]} 54... Kc6 {[%clk 0:00:25.5]} 55. Kg6 {[%clk
0:00:04.9]} 55... b5 {[%clk 0:00:25.9]} 56. Kg5 {[%clk 0:00:05.5]} 56... b4
{[%clk 0:00:26.3]} 57. Kf4 {[%clk 0:00:06.4]} 57... b3 {[%clk 0:00:26.7]} 58.
Ke3 {[%clk 0:00:06.7]} 58... b2 {[%clk 0:00:27]} 59. Rf1 {[%clk 0:00:06.7]}
59... Kc5 {[%clk 0:00:27.5]} 60. Kd2 {[%clk 0:00:07.3]} 60... Kb4 {[%clk
0:00:27.5]} 61. Kc2 {[%clk 0:00:07.8]} 61... Ka3 {[%clk 0:00:28]} 62. Rb1 {[%clk
0:00:08.4]} 1-0

[Event "Early-Titled-Tuesday-Blitz-February-20-2024"]
[Site "Chess.com"]
[Date "2024.02.20"]
[Round "1"]
[White "Iskusnyh"]
[Black "Shivananda1964"]
[Result "1-0"]
[WhiteElo "2676"]
[BlackElo "2333"]
[TimeControl "180+1"]
[EndTime "8:07:57 PST"]
[Termination "Iskusnyh won by resignation"]

1. d4 {[%clk 0:02:58.8]} 1... Nf6 {[%clk 0:02:57.8]} 2. c4 {[%clk 0:02:58.8]}
2... Nc6 {[%clk 0:02:56.4]} 3. Nf3 {[%clk 0:02:57.8]} 3... e6 {[%clk 0:02:53.9]}
4. g3 {[%clk 0:02:57.2]} 4... Bb4+ {[%clk 0:02:52.7]} 5. Bd2 {[%clk 0:02:53.8]}
5... Qe7 {[%clk 0:02:52.3]} 6. Nc3 {[%clk 0:02:52.1]} 6... d6 {[%clk 0:02:46.1]}
7. Bg2 {[%clk 0:02:51.4]} 7... O-O {[%clk 0:02:45.2]} 8. O-O {[%clk 0:02:50.8]}
8... a5 {[%clk 0:02:42.4]} 9. a3 {[%clk 0:02:23.6]} 9... Bxc3 {[%clk 0:02:42.3]}
10. Bxc3 {[%clk 0:02:24.5]} 10... a4 {[%clk 0:02:42.8]} 11. Qc2 {[%clk
0:02:22.5]} 11... e5 {[%clk 0:02:37.9]} 12. d5 {[%clk 0:02:15.9]} 12... Nb8
{[%clk 0:02:37.6]} 13. e4 {[%clk 0:02:14.4]} 13... Nbd7 {[%clk 0:02:36.8]} 14.
Rae1 {[%clk 0:02:10.1]} 14... Nc5 {[%clk 0:02:36.6]} 15. Nd2 {[%clk 0:02:09.9]}
15... Bd7 {[%clk 0:02:36]} 16. f4 {[%clk 0:02:08.6]} 16... b5 {[%clk 0:02:22.1]}
17. fxe5 {[%clk 0:02:04]} 17... Ng4 {[%clk 0:02:04.1]} 18. exd6 {[%clk 0:01:30]}
18... cxd6 {[%clk 0:02:03]} 19. Nf3 {[%clk 0:01:28.7]} 19... f6 {[%clk 0:01:58]}
20. h3 {[%clk 0:01:27.4]} 20... Ne5 {[%clk 0:01:57.9]} 21. Nxe5 {[%clk 0:01:27]}
21... fxe5 {[%clk 0:01:56.9]} 22. Bb4 {[%clk 0:01:19.4]} 22... Rfc8 {[%clk
0:01:30.4]} 23. Kh2 {[%clk 0:01:01.8]} 23... Nb3 {[%clk 0:01:21.4]} 24. Rf3
{[%clk 0:00:48.3]} 24... Rxc4 {[%clk 0:01:21]} 25. Qf2 {[%clk 0:00:45.3]} 25...
Nd4 {[%clk 0:01:15.3]} 26. Rc3 {[%clk 0:00:43]} 26... Rac8 {[%clk 0:01:07]} 27.
Rf1 {[%clk 0:00:40.8]} 27... h6 {[%clk 0:01:00.7]} 28. Qe3 {[%clk 0:00:33.6]}
28... Nc2 {[%clk 0:00:55.6]} 29. Qd2 {[%clk 0:00:21.7]} 29... Nxb4 {[%clk
0:00:54.8]} 30. axb4 {[%clk 0:00:22.6]} 30... Qg5 {[%clk 0:00:31]} 31. Qf2
{[%clk 0:00:20.1]} 31... Kh7 {[%clk 0:00:12.4]} 32. Qa7 {[%clk 0:00:18.1]} 32...
Rxc3 {[%clk 0:00:08.3]} 33. bxc3 {[%clk 0:00:17.5]} 33... Rxc3 {[%clk
0:00:08.1]} 34. Qxd7 {[%clk 0:00:14.1]} 34... Qxg3+ {[%clk 0:00:08.1]} 35. Kh1
{[%clk 0:00:14.6]} 35... Rc2 {[%clk 0:00:07.6]} 36. Qf5+ {[%clk 0:00:15.1]}
36... Kh8 {[%clk 0:00:07.7]} 37. Qf8+ {[%clk 0:00:15.2]} 37... Kh7 {[%clk
0:00:08.1]} 38. Qf5+ {[%clk 0:00:15.8]} 38... Kh8 {[%clk 0:00:08.3]} 39. Qg4
{[%clk 0:00:16.3]} 39... Qxg4 {[%clk 0:00:06.1]} 40. hxg4 {[%clk 0:00:16.1]}
40... Rb2 {[%clk 0:00:06.1]} 41. Rf8+ {[%clk 0:00:15.2]} 41... Kh7 {[%clk
0:00:05.6]} 42. Rd8 {[%clk 0:00:16.1]} 42... Rxb4 {[%clk 0:00:05]} 43. Rxd6
{[%clk 0:00:16.6]} 43... a3 {[%clk 0:00:05.5]} 44. g5 {[%clk 0:00:12.8]} 44...
a2 {[%clk 0:00:05.4]} 45. g6+ {[%clk 0:00:12.7]} 1-0

[Event "Early-Titled-Tuesday-Blitz-February-20-2024"]
[Site "Chess.com"]
[Date "2024.02.20"]
[Round "1"]
[White "chegueps"]
[Black "conformalfunction"]
[Result "0-1"]
[WhiteElo "2671"]
[BlackElo "2385"]
[TimeControl "180+1"]
[EndTime "8:07:58 PST"]
[Termination "conformalfunction won by resignation"]

1. d4 {[%clk 0:03:00.9]} 1... Nf6 {[%clk 0:02:40.9]} 2. Nf3 {[%clk 0:02:59.8]}
2... d5 {[%clk 0:02:36.9]} 3. Bf4 {[%clk 0:02:59.2]} 3... c6 {[%clk 0:02:23.7]}
4. e3 {[%clk 0:02:57.8]} 4... Bg4 {[%clk 0:02:23.7]} 5. h3 {[%clk 0:02:55.6]}
5... Bh5 {[%clk 0:02:23.5]} 6. Be2 {[%clk 0:02:53.9]} 6... Nbd7 {[%clk
0:02:23.8]} 7. Ne5 {[%clk 0:02:53.8]} 7... Bxe2 {[%clk 0:02:23.3]} 8. Qxe2
{[%clk 0:02:54.7]} 8... e6 {[%clk 0:02:22.6]} 9. Nd2 {[%clk 0:02:53]} 9... Be7
{[%clk 0:02:22.9]} 10. g4 {[%clk 0:02:46.4]} 10... Nxe5 {[%clk 0:02:14.8]} 11.
Bxe5 {[%clk 0:02:41.2]} 11... Bd6 {[%clk 0:02:12.5]} 12. O-O-O {[%clk
0:02:37.8]} 12... Bxe5 {[%clk 0:02:09.3]} 13. dxe5 {[%clk 0:02:38.7]} 13... Nd7
{[%clk 0:02:09.6]} 14. f4 {[%clk 0:02:38.1]} 14... Qa5 {[%clk 0:02:08.8]} 15.
Kb1 {[%clk 0:02:38]} 15... O-O-O {[%clk 0:02:07.5]} 16. h4 {[%clk 0:02:34.1]}
16... Nc5 {[%clk 0:01:59.2]} 17. h5 {[%clk 0:02:27.4]} 17... Ne4 {[%clk
0:01:59.5]} 18. Nxe4 {[%clk 0:02:21.6]} 18... dxe4 {[%clk 0:02:00.4]} 19. g5
{[%clk 0:01:41.6]} 19... Rxd1+ {[%clk 0:01:50]} 20. Rxd1 {[%clk 0:01:42.5]}
20... Rd8 {[%clk 0:01:50]} 21. Rxd8+ {[%clk 0:01:41.8]} 21... Qxd8 {[%clk
0:01:50.9]} 22. b3 {[%clk 0:01:34.8]} 22... a5 {[%clk 0:01:20.4]} 23. a4 {[%clk
0:01:24.9]} 23... Qd5 {[%clk 0:01:12.5]} 24. h6 {[%clk 0:01:22.5]} 24... g6
{[%clk 0:01:10.4]} 25. Qe1 {[%clk 0:01:11.9]} 25... b6 {[%clk 0:01:07.9]} 26.
Kb2 {[%clk 0:01:10.9]} 26... Kb7 {[%clk 0:01:08]} 27. Qa1 {[%clk 0:01:01.7]}
27... Qd2 {[%clk 0:01:02.3]} 28. Qc1 {[%clk 0:01:00.7]} 28... Qxc1+ {[%clk
0:00:55]} 29. Kxc1 {[%clk 0:01:01.6]} 29... b5 {[%clk 0:00:55.6]} 30. Kb2 {[%clk
0:00:38.8]} 30... Kb6 {[%clk 0:00:54.8]} 31. Kc3 {[%clk 0:00:35.5]} 31... Kc5
{[%clk 0:00:54.6]} 32. axb5 {[%clk 0:00:35.4]} 32... cxb5 {[%clk 0:00:55.5]} 33.
b4+ {[%clk 0:00:35.7]} 33... Kb6 {[%clk 0:00:40.4]} 34. bxa5+ {[%clk 0:00:34]}
34... Kxa5 {[%clk 0:00:41.3]} 35. Kb3 {[%clk 0:00:28.2]} 35... b4 {[%clk
0:00:35.6]} 36. Kc4 {[%clk 0:00:11.1]} 36... Ka4 {[%clk 0:00:35.2]} 37. Kd4
{[%clk 0:00:11.5]} 37... b3 {[%clk 0:00:25.2]} 38. cxb3+ {[%clk 0:00:10]} 38...
Kxb3 {[%clk 0:00:26.1]} 39. Kxe4 {[%clk 0:00:10]} 39... Kc4 {[%clk 0:00:26.2]}
40. Kf3 {[%clk 0:00:09.7]} 40... Kd3 {[%clk 0:00:26]} 41. Kf2 {[%clk 0:00:09.7]}
41... Kd2 {[%clk 0:00:26.4]} 42. Kf3 {[%clk 0:00:05.5]} 42... Kd3 {[%clk
0:00:26.8]} 43. Kf2 {[%clk 0:00:05.4]} 43... Kd2 {[%clk 0:00:26.7]} 44. e4
{[%clk 0:00:04.4]} 44... Kd3 {[%clk 0:00:25.2]} 45. Kf3 {[%clk 0:00:04.8]} 45...
Kd4 {[%clk 0:00:20.1]} 46. f5 {[%clk 0:00:05.2]} 46... Kd3 {[%clk 0:00:18.4]}
47. f6 {[%clk 0:00:02.3]} 47... Kd4 {[%clk 0:00:16.5]} 48. Kf4 {[%clk
0:00:02.9]} 48... Kd3 {[%clk 0:00:15.7]} 49. Kf3 {[%clk 0:00:03.4]} 49... Kd2
{[%clk 0:00:15.4]} 50. Kf4 {[%clk 0:00:01.8]} 50... Ke2 {[%clk 0:00:12.1]} 51.
Kg4 {[%clk 0:00:01.6]} 51... Ke3 {[%clk 0:00:11.8]} 52. Kg3 {[%clk 0:00:01.7]}
52... Kxe4 {[%clk 0:00:12.6]} 53. Kf2 {[%clk 0:00:02.1]} 53... Kxe5 {[%clk
0:00:13.5]} 54. Ke3 {[%clk 0:00:03]} 54... Kf5 {[%clk 0:00:14.2]} 55. Kd4 {[%clk
0:00:03.8]} 55... Kxg5 {[%clk 0:00:15.1]} 56. Kc5 {[%clk 0:00:04.7]} 56... Kxf6
{[%clk 0:00:15.8]} 57. Kd6 {[%clk 0:00:05.6]} 57... e5 {[%clk 0:00:15.9]} 0-1

[Event "Early-Titled-Tuesday-Blitz-February-20-2024"]
[Site "Chess.com"]
[Date "2024.02.20"]
[Round "1"]
[White "arenal72"]
[Black "lrestevez"]
[Result "1/2-1/2"]
[WhiteElo "2572"]
[BlackElo "2191"]
[TimeControl "180+1"]
[EndTime "8:07:58 PST"]
[Termination "Game drawn by stalemate"]

1. c4 {[%clk 0:02:56.7]} 1... Nf6 {[%clk 0:02:56.4]} 2. Nc3 {[%clk 0:02:53.1]}
2... e6 {[%clk 0:02:57]} 3. e4 {[%clk 0:02:46.3]} 3... d5 {[%clk 0:02:57.6]} 4.
cxd5 {[%clk 0:02:42]} 4... exd5 {[%clk 0:02:57.9]} 5. e5 {[%clk 0:02:42.7]} 5...
d4 {[%clk 0:02:48.5]} 6. exf6 {[%clk 0:02:39]} 6... dxc3 {[%clk 0:02:48.4]} 7.
fxg7 {[%clk 0:02:38.8]} 7... cxd2+ {[%clk 0:02:45.6]} 8. Qxd2 {[%clk 0:02:35.9]}
8... Qxd2+ {[%clk 0:02:45]} 9. Bxd2 {[%clk 0:02:36.8]} 9... Bxg7 {[%clk
0:02:45]} 10. O-O-O {[%clk 0:02:36.3]} 10... O-O {[%clk 0:02:44]} 11. Bc4 {[%clk
0:02:33]} 11... Bf5 {[%clk 0:02:36.2]} 12. Nf3 {[%clk 0:02:22.7]} 12... Nc6
{[%clk 0:02:36.8]} 13. Rhe1 {[%clk 0:02:20.8]} 13... Rfe8 {[%clk 0:02:36.4]} 14.
Ng5 {[%clk 0:02:08.4]} 14... Bg6 {[%clk 0:02:35.1]} 15. f4 {[%clk 0:02:02.9]}
15... h6 {[%clk 0:02:18.7]} 16. Nf3 {[%clk 0:01:52.3]} 16... a5 {[%clk
0:02:13.2]} 17. g4 {[%clk 0:01:46.4]} 17... Be4 {[%clk 0:02:04.6]} 18. Ne5
{[%clk 0:01:03.2]} 18... Nxe5 {[%clk 0:01:48.9]} 19. Rxe4 {[%clk 0:00:59]} 19...
Nxc4 {[%clk 0:01:46.3]} 20. Rxc4 {[%clk 0:00:58.2]} 20... c6 {[%clk 0:01:39.1]}
21. Re1 {[%clk 0:00:56.1]} 21... Rxe1+ {[%clk 0:01:36.4]} 22. Bxe1 {[%clk
0:00:57]} 22... a4 {[%clk 0:01:32.3]} 23. Re4 {[%clk 0:00:54.6]} 23... Bf6
{[%clk 0:01:24.5]} 24. f5 {[%clk 0:00:51]} 24... a3 {[%clk 0:01:23.2]} 25. b3
{[%clk 0:00:49.7]} 25... Rd8 {[%clk 0:01:15]} 26. Bb4 {[%clk 0:00:48.7]} 26...
Bb2+ {[%clk 0:01:06.5]} 27. Kc2 {[%clk 0:00:48.4]} 27... b6 {[%clk 0:01:02.6]}
28. Be7 {[%clk 0:00:41.8]} 28... Rd5 {[%clk 0:00:57.7]} 29. f6 {[%clk
0:00:39.3]} 29... Kh7 {[%clk 0:00:56.8]} 30. h4 {[%clk 0:00:38.9]} 30... Kg6
{[%clk 0:00:53.5]} 31. Ra4 {[%clk 0:00:33.9]} 31... b5 {[%clk 0:00:46.8]} 32.
Ra7 {[%clk 0:00:31.6]} 32... c5 {[%clk 0:00:45.5]} 33. Rc7 {[%clk 0:00:30.8]}
33... Bd4 {[%clk 0:00:40]} 34. b4 {[%clk 0:00:27.6]} 34... c4 {[%clk 0:00:33.4]}
35. Rc8 {[%clk 0:00:22.7]} 35... Be5 {[%clk 0:00:19.9]} 36. Rg8+ {[%clk
0:00:20.9]} 36... Kh7 {[%clk 0:00:19.9]} 37. Rg7+ {[%clk 0:00:21.3]} 37... Kh8
{[%clk 0:00:19.8]} 38. Rxf7 {[%clk 0:00:21.9]} 38... c3 {[%clk 0:00:17]} 39.
Rf8+ {[%clk 0:00:17.5]} 39... Kh7 {[%clk 0:00:16.9]} 40. f7 {[%clk 0:00:16.9]}
40... Kg7 {[%clk 0:00:15.5]} 41. Rd8 {[%clk 0:00:10]} 41... Rxd8 {[%clk
0:00:10.6]} 42. Bxd8 {[%clk 0:00:10.4]} 42... Kxf7 {[%clk 0:00:10.8]} 43. Bb6
{[%clk 0:00:10.6]} 43... Ke6 {[%clk 0:00:10.6]} 44. Bf2 {[%clk 0:00:10.6]} 44...
Kd5 {[%clk 0:00:10.7]} 45. Kb3 {[%clk 0:00:09.4]} 45... Ke4 {[%clk 0:00:09.3]}
46. g5 {[%clk 0:00:08.5]} 46... hxg5 {[%clk 0:00:08.7]} 47. hxg5 {[%clk
0:00:09.4]} 47... Kd3 {[%clk 0:00:09.1]} 48. g6 {[%clk 0:00:05.7]} 48... c2
{[%clk 0:00:09.5]} 49. Be3 {[%clk 0:00:06]} 49... Kxe3 {[%clk 0:00:07.6]} 50.
Kxc2 {[%clk 0:00:06.3]} 50... Bb2 {[%clk 0:00:07.2]} 51. Kb3 {[%clk 0:00:05.7]}
51... Kd3 {[%clk 0:00:07]} 52. g7 {[%clk 0:00:05.5]} 52... Bxg7 {[%clk
0:00:06.4]} 53. Kxa3 {[%clk 0:00:05.7]} 53... Kc4 {[%clk 0:00:06]} 1/2-1/2

[Event "Early-Titled-Tuesday-Blitz-February-20-2024"]
[Site "Chess.com"]
[Date "2024.02.20"]
[Round "1"]
[White "Njal28"]
[Black "SHIVACalypso"]
[Result "1-0"]
[WhiteElo "2974"]
[BlackElo "2518"]
[TimeControl "180+1"]
[EndTime "8:08:01 PST"]
[Termination "Njal28 won by resignation"]

1. d4 {[%clk 0:03:00.9]} 1... Nf6 {[%clk 0:02:59.3]} 2. Nf3 {[%clk 0:03:01.5]}
2... e6 {[%clk 0:02:57.7]} 3. c4 {[%clk 0:03:01.1]} 3... b6 {[%clk 0:02:54.5]}
4. g3 {[%clk 0:03:00.3]} 4... Bb7 {[%clk 0:02:54.7]} 5. Bg2 {[%clk 0:03:00.3]}
5... Be7 {[%clk 0:02:51.8]} 6. O-O {[%clk 0:03:00.5]} 6... O-O {[%clk
0:02:52.2]} 7. h4 {[%clk 0:03:00.5]} 7... d6 {[%clk 0:02:45.2]} 8. Re1 {[%clk
0:02:52.1]} 8... Nbd7 {[%clk 0:02:43]} 9. Nc3 {[%clk 0:02:52.2]} 9... Ne4 {[%clk
0:02:42.6]} 10. Qc2 {[%clk 0:02:48.6]} 10... Nxc3 {[%clk 0:02:40.7]} 11. bxc3
{[%clk 0:02:46.2]} 11... f5 {[%clk 0:02:17.8]} 12. Ng5 {[%clk 0:02:40]} 12...
Bxg5 {[%clk 0:01:57.2]} 13. Bxb7 {[%clk 0:02:38.8]} 13... Bxc1 {[%clk
0:01:57.2]} 14. Bxa8 {[%clk 0:02:36.8]} 14... Qxa8 {[%clk 0:01:57.6]} 15. Raxc1
{[%clk 0:02:27.6]} 15... f4 {[%clk 0:01:57.4]} 16. Qd3 {[%clk 0:02:15.8]} 16...
e5 {[%clk 0:01:54.7]} 17. e4 {[%clk 0:02:03.8]} 17... Qe8 {[%clk 0:01:50.7]} 18.
Kg2 {[%clk 0:01:36.6]} 18... Qh5 {[%clk 0:01:42.1]} 19. Qf3 {[%clk 0:01:32]}
19... Qg6 {[%clk 0:01:37.1]} 20. g4 {[%clk 0:01:31.3]} 20... Nf6 {[%clk
0:01:26.7]} 21. Kh3 {[%clk 0:01:21.6]} 21... h5 {[%clk 0:01:15.9]} 22. gxh5
{[%clk 0:01:17]} 22... Nxh5 {[%clk 0:01:16.8]} 23. Rg1 {[%clk 0:01:16.7]} 23...
Qe6+ {[%clk 0:01:09.2]} 24. Qg4 {[%clk 0:01:16.1]} 24... Qxg4+ {[%clk
0:01:08.3]} 25. Kxg4 {[%clk 0:01:13.1]} 25... Nf6+ {[%clk 0:01:09.2]} 26. Kf3
{[%clk 0:01:13.6]} 26... Kf7 {[%clk 0:01:09.5]} 27. dxe5 {[%clk 0:01:12.8]}
27... dxe5 {[%clk 0:01:10.2]} 28. Rg5 {[%clk 0:01:13.5]} 28... Rh8 {[%clk
0:00:56.9]} 29. Rcg1 {[%clk 0:01:13.5]} 29... Rxh4 {[%clk 0:00:53.8]} 30. Rxe5
{[%clk 0:01:08.3]} 30... Rh3+ {[%clk 0:00:50.7]} 31. Kxf4 {[%clk 0:01:05.6]}
31... Rxc3 {[%clk 0:00:50.1]} 32. Reg5 {[%clk 0:01:01]} 32... Rxc4 {[%clk
0:00:45.1]} 33. f3 {[%clk 0:00:52.7]} 33... Ne8 {[%clk 0:00:42.6]} 34. Ke3
{[%clk 0:00:37.9]} 34... Rc2 {[%clk 0:00:39.8]} 35. R1g2 {[%clk 0:00:37.4]}
35... Rc3+ {[%clk 0:00:39.8]} 36. Kf4 {[%clk 0:00:37.7]} 36... a5 {[%clk
0:00:35.7]} 37. e5 {[%clk 0:00:36]} 37... Rc4+ {[%clk 0:00:23.7]} 38. Kf5 {[%clk
0:00:32]} 38... Rc5 {[%clk 0:00:24.1]} 39. Ke4 {[%clk 0:00:27.7]} 39... Rc4+
{[%clk 0:00:22.7]} 40. Ke3 {[%clk 0:00:25.9]} 40... Ke6 {[%clk 0:00:20.6]} 41.
f4 {[%clk 0:00:25.6]} 41... Rc3+ {[%clk 0:00:20.1]} 42. Kd4 {[%clk 0:00:25.6]}
42... Ra3 {[%clk 0:00:19.9]} 43. f5+ {[%clk 0:00:21.8]} 43... Kf7 {[%clk
0:00:20.1]} 44. Ke4 {[%clk 0:00:18.2]} 44... Ra4+ {[%clk 0:00:19.8]} 45. Kd5
{[%clk 0:00:17.5]} 45... Ra3 {[%clk 0:00:18.1]} 46. R5g3 {[%clk 0:00:16.2]}
46... Ra4 {[%clk 0:00:17.1]} 47. Kc6 {[%clk 0:00:16.1]} 47... Rc4+ {[%clk
0:00:16.8]} 48. Kd5 {[%clk 0:00:15.2]} 48... Rc5+ {[%clk 0:00:16.8]} 49. Ke4
{[%clk 0:00:15.2]} 49... Rc4+ {[%clk 0:00:17.2]} 50. Kd3 {[%clk 0:00:15]} 50...
Rc5 {[%clk 0:00:17.6]} 51. Kd4 {[%clk 0:00:14.9]} 51... Ke7 {[%clk 0:00:15.2]}
52. Rxg7+ {[%clk 0:00:11.5]} 52... Nxg7 {[%clk 0:00:16.1]} 53. Rxg7+ {[%clk
0:00:10.9]} 53... Kf8 {[%clk 0:00:16.5]} 54. f6 {[%clk 0:00:10.8]} 54... Rc2
{[%clk 0:00:16.4]} 55. e6 {[%clk 0:00:10.3]} 55... Rxa2 {[%clk 0:00:15.8]} 56.
e7+ {[%clk 0:00:10.4]} 56... Ke8 {[%clk 0:00:15.3]} 57. Rg8+ {[%clk 0:00:11.3]}
57... Kd7 {[%clk 0:00:16]} 58. e8=Q+ {[%clk 0:00:12.2]} 1-0

[Event "Early-Titled-Tuesday-Blitz-February-20-2024"]
[Site "Chess.com"]
[Date "2024.02.20"]
[Round "1"]
[White "fabianvivasz"]
[Black "Aygehovit1992"]
[Result "0-1"]
[WhiteElo "2361"]
[BlackElo "2691"]
[TimeControl "180+1"]
[EndTime "8:08:03 PST"]
[Termination "Aygehovit1992 won by resignation"]

1. e4 {[%clk 0:03:00.9]} 1... c5 {[%clk 0:02:59.9]} 2. Nf3 {[%clk 0:02:59.5]}
2... e6 {[%clk 0:03:00.1]} 3. d4 {[%clk 0:02:59.4]} 3... cxd4 {[%clk 0:03:00.4]}
4. Nxd4 {[%clk 0:03:00.3]} 4... Nc6 {[%clk 0:03:01]} 5. Nc3 {[%clk 0:02:59.4]}
5... Qc7 {[%clk 0:03:01.5]} 6. Be3 {[%clk 0:02:58.2]} 6... a6 {[%clk 0:03:01]}
7. g4 {[%clk 0:02:55.2]} 7... h6 {[%clk 0:03:00.1]} 8. h4 {[%clk 0:02:39.5]}
8... b5 {[%clk 0:02:59.5]} 9. Nxc6 {[%clk 0:02:37.7]} 9... Qxc6 {[%clk
0:02:58.6]} 10. Qd2 {[%clk 0:02:33.8]} 10... Nf6 {[%clk 0:02:57.4]} 11. Rg1
{[%clk 0:02:28.3]} 11... b4 {[%clk 0:02:52.8]} 12. Ne2 {[%clk 0:02:19.9]} 12...
Nxe4 {[%clk 0:02:52.6]} 13. Qd3 {[%clk 0:02:19]} 13... Bb7 {[%clk 0:02:40.3]}
14. Bg2 {[%clk 0:02:13.7]} 14... Rc8 {[%clk 0:02:31]} 15. O-O-O {[%clk
0:02:09.3]} 15... Bc5 {[%clk 0:02:10.9]} 16. Bxe4 {[%clk 0:01:56.1]} 16... Bxe3+
{[%clk 0:02:02.6]} 17. fxe3 {[%clk 0:01:49.4]} 17... Qxe4 {[%clk 0:02:02.9]} 18.
Qxd7+ {[%clk 0:01:49.6]} 18... Kf8 {[%clk 0:02:02.9]} 19. Rd3 {[%clk 0:01:35.6]}
19... Qc6 {[%clk 0:01:56]} 20. Qxc6 {[%clk 0:01:25.7]} 20... Bxc6 {[%clk
0:01:56.5]} 21. Rf1 {[%clk 0:01:22.3]} 21... Ke7 {[%clk 0:01:52.2]} 22. Kd2
{[%clk 0:01:07.7]} 22... Be4 {[%clk 0:01:46.7]} 23. Rd4 {[%clk 0:00:58.8]} 23...
Rxc2+ {[%clk 0:01:25.6]} 24. Kd1 {[%clk 0:00:58.7]} 24... Rxb2 {[%clk
0:01:06.7]} 25. Rxe4 {[%clk 0:00:57.3]} 25... Rb1+ {[%clk 0:00:56.1]} 26. Nc1
{[%clk 0:00:57.1]} 26... Rc8 {[%clk 0:00:56]} 27. Kd2 {[%clk 0:00:55.7]} 27...
Rb2+ {[%clk 0:00:55.9]} 28. Kd3 {[%clk 0:00:50.9]} 28... Rc3+ {[%clk 0:00:54.4]}
29. Kd4 {[%clk 0:00:47.2]} 29... Rb1 {[%clk 0:00:30.3]} 30. Ne2 {[%clk
0:00:25.7]} 30... Rxf1 {[%clk 0:00:24.7]} 31. Nxc3 {[%clk 0:00:25.8]} 31... bxc3
{[%clk 0:00:20.6]} 32. Kxc3 {[%clk 0:00:26.7]} 32... f5 {[%clk 0:00:15.3]} 33.
Ra4 {[%clk 0:00:21.3]} 33... fxg4 {[%clk 0:00:14.4]} 34. Rxg4 {[%clk 0:00:21.9]}
34... Kf6 {[%clk 0:00:14.7]} 35. Ra4 {[%clk 0:00:18.3]} 35... Rh1 {[%clk
0:00:14.9]} 36. Kd3 {[%clk 0:00:14.7]} 36... Rd1+ {[%clk 0:00:09.1]} 37. Kc4
{[%clk 0:00:11.2]} 37... Rd6 {[%clk 0:00:09.1]} 38. Kc5 {[%clk 0:00:11.4]} 38...
Rd5+ {[%clk 0:00:09.5]} 39. Kb6 {[%clk 0:00:10.1]} 39... Rd3 {[%clk 0:00:07.1]}
40. e4 {[%clk 0:00:07.7]} 40... g5 {[%clk 0:00:07.2]} 41. hxg5+ {[%clk
0:00:07.4]} 41... hxg5 {[%clk 0:00:08.1]} 42. Kxa6 {[%clk 0:00:07.9]} 42... g4
{[%clk 0:00:08.3]} 43. e5+ {[%clk 0:00:05.8]} 43... Kf5 {[%clk 0:00:08.1]} 44.
Kb5 {[%clk 0:00:04.8]} 44... g3 {[%clk 0:00:08.4]} 45. Ra8 {[%clk 0:00:04.7]}
45... Rd5+ {[%clk 0:00:05.6]} 46. Kc4 {[%clk 0:00:04.6]} 46... Rxe5 {[%clk
0:00:04.8]} 47. Rg8 {[%clk 0:00:04.7]} 47... Kf4 {[%clk 0:00:04.8]} 48. a4
{[%clk 0:00:04.4]} 48... Rg5 {[%clk 0:00:05]} 49. Rf8+ {[%clk 0:00:02.8]} 49...
Ke3 {[%clk 0:00:05.3]} 50. Rf1 {[%clk 0:00:01.5]} 50... g2 {[%clk 0:00:05.9]}
51. Rg1 {[%clk 0:00:01.6]} 51... Kf2 {[%clk 0:00:06.1]} 52. Ra1 {[%clk
0:00:02.4]} 52... g1=Q {[%clk 0:00:06.1]} 0-1